fUST/lending_fUST_20240629
["ID","MTS","AMOUNT","RATE_DAILY","PERIOD"]
[330603660,1719609102104,-188.07156478,0.00027123,4]
[330603661,1719609102114,-1280.69,0.00027123,4]
[330603662,1719609102123,-2279.24,0.00027123,4]
[330603663,1719609102133,-500.0,0.00027123,4]
[330603664,1719609102142,-3712.0,0.00027123,4]
[330603665,1719609102152,-4032.61,0.00027123,4]
[330603666,1719609102161,-227.79,0.00027123,4]
[330603667,1719609102170,-1001.0,0.00027123,4]
[330603668,1719609102179,-2069.86,0.00027123,4]
[330603669,1719609102187,-5418.01,0.00027123,4]
[330603670,1719609102197,-826.19,0.00027123,4]
[330603671,1719609102206,-803.14,0.00027123,4]
[330603672,1719609102215,-939.69,0.00027123,4]
[330603673,1719609102224,-60694.4,0.00027123,4]
[330603674,1719609102233,-2175.07,0.00027123,4]
[330603675,1719609102242,-3733.28,0.00027123,4]
[330603676,1719609102251,-7121.33,0.00027123,4]
[330603677,1719609102260,-500.0,0.00027123,4]
[330603678,1719609102269,-4094.82,0.00027123,4]
[330603679,1719609102280,-582.3,0.00027123,4]
[330603680,1719609102289,-521.59,0.00027123,4]
[330603681,1719609102298,-834.09,0.00027123,4]
[330603682,1719609102307,-689.13,0.00027123,4]
[330603683,1719609102316,-1575.66,0.00027123,4]
[330603684,1719609102325,-1770.99,0.00027123,4]
[330603685,1719609102334,-12345.82,0.00027123,4]
[330603686,1719609102343,-651.08,0.00027123,4]
[330603687,1719609102352,-500.0,0.00027123,4]
[330603688,1719609102361,-1018.4,0.00027123,4]
[330603689,1719609102370,-2468.56,0.00027123,4]
[330603690,1719609102379,-12723.98,0.00027123,4]
[330603691,1719609102388,-1210.66,0.00027123,4]
[330603692,1719609102397,-500.0,0.00027123,2]
[330603693,1719609102406,-923.2,0.00027123,4]
[330603694,1719609102415,-2010.28,0.00027123,4]
[330603695,1719609102424,-4814.91,0.00027123,4]
[330603696,1719609102434,-11513.48,0.00027123,4]
[330603697,1719609102443,-506.2,0.00027123,4]
[330603698,1719609102452,-10418.44,0.00027123,4]
[330603699,1719609102461,-500.0,0.00027123,4]
[330603700,1719609102471,-500.0,0.00027123,4]
[330603701,1719609102480,-959.34,0.00027123,4]
[330603702,1719609102490,-1894.29,0.00027123,4]
[330603703,1719609102500,-655.11,0.00027123,4]
[330603704,1719609102509,-1715.47,0.00027123,4]
[330603705,1719609102518,-1813.93,0.00027123,4]
[330603706,1719609102528,-1262.66,0.00027123,4]
[330603707,1719609102538,-761.05,0.00027123,4]
[330603708,1719609102548,-535.3,0.00027123,4]
[330603709,1719609102557,-1055.6,0.00027123,4]
[330603710,1719609102566,-1710.79,0.00027123,4]
[330603711,1719609102575,-2194.15,0.00027123,4]
[330603712,1719609102584,-548.94195193,0.00027123,4]
[330603713,1719609102594,-979.7,0.00027123,4]
[330603714,1719609102603,-528.59,0.00027123,4]
[330603715,1719609102612,-628.71,0.00027123,4]
[330603716,1719609102621,-750.32,0.00027123,4]
[330603717,1719609102631,-586.77,0.00027123,4]
[330603718,1719609102641,-1021.86,0.00027123,4]
[330603719,1719609102650,-10772.11,0.00027123,4]
[330603720,1719609102660,-740.26,0.00027123,4]
[330603721,1719609102669,-1018.02,0.00027123,4]
[330603722,1719609102678,-3099.44,0.00027123,4]
[330603723,1719609102688,-669.76,0.00027123,4]
[330603724,1719609102698,-600.27,0.00027123,4]
[330603725,1719609102708,-500.0,0.00027123,4]
[330603726,1719609102717,-546.35,0.00027123,4]
[330603727,1719609102727,-4987.38,0.00027123,4]
[330603728,1719609102736,-500.0,0.00027123,4]
[330603729,1719609102746,-4038.76,0.00027123,4]
[330603730,1719609102755,-1461.16,0.00027123,4]
[330603731,1719609102765,-2850.21,0.00027123,4]
[330603732,1719609102774,-3352.17,0.00027123,4]
[330603733,1719609102784,-621.88,0.00027123,4]
[330603734,1719609102793,-683.47,0.00027123,4]
[330603735,1719609102803,-23476.31,0.00027123,4]
[330603736,1719609102812,-6462.45,0.00027123,4]
[330603737,1719609102821,-456.28807588,0.00027123,4]
[330603738,1719609102831,-1525.02,0.00027123,4]
[330603739,1719609102840,-9156.13,0.00027123,4]
[330603740,1719609102849,-1587.41,0.00027123,4]
[330603741,1719609102859,-950.0,0.00027175,2]
[330603742,1719609102868,-453.372102,0.00027195,2]
[330603743,1719609102877,-6356.54,0.00027397,4]
[330603744,1719609102886,-500.0,0.00027397,2]
[330603745,1719609102896,-1053.33,0.00027397,4]
[330603746,1719609102906,-500.0,0.00027397,4]
[330603747,1719609102915,-581.35,0.00027397,4]
[330603748,1719609102925,-2317.09,0.00027397,4]
[330603749,1719609102934,-922.96,0.00027397,4]
[330603750,1719609102943,-834.68,0.00027397,4]
[330603751,1719609102953,-803.38,0.00027397,4]
[330603752,1719609102962,-1513.65,0.00027397,4]
[330603753,1719609102972,-969.26,0.00027397,4]
[330603754,1719609102981,-1279.12,0.00027397,4]
[330603755,1719609102990,-580.44,0.00027397,4]
[330603756,1719609102999,-750.55,0.00027397,4]
[330603757,1719609103008,-527.85,0.00027397,4]
[330603758,1719609103017,-762.9,0.00027397,4]
[330603759,1719609103032,-500.0,0.00027397,4]
[330603760,1719609103041,-794.3,0.00027397,4]
[330603761,1719609103050,-526.04,0.00027397,4]
[330603762,1719609103060,-819.47,0.00027397,4]
[330603763,1719609103070,-905.98,0.00027397,4]
[330603764,1719609103080,-240.18163514,0.00027397,4]
[330603765,1719609103089,-1589.77,0.00027397,4]
[330603766,1719609103099,-1414.16,0.00027397,4]
[330603767,1719609103109,-514.41,0.00027397,4]
[330603768,1719609103119,-549.62,0.00027397,4]
[330603769,1719609103128,-1020.77,0.00027397,4]
[330603770,1719609103137,-2333.86,0.00027397,4]
[330603771,1719609103146,-718.41,0.00027397,4]
[330603772,1719609103154,-632.14,0.00027397,4]
[330603773,1719609103163,-2254.28,0.00027397,4]
[330603774,1719609103173,-1134.77,0.00027397,4]
[330603775,1719609103182,-552.34,0.00027397,4]
[330603776,1719609103191,-655.59,0.00027397,4]
[330603777,1719609103200,-500.0,0.00027397,4]
[330603778,1719609103209,-1584.44,0.00027397,4]
[330603779,1719609103218,-705.63,0.00027397,4]
[330603780,1719609103227,-992.69,0.00027397,4]
[330603781,1719609103236,-963.94,0.00027397,4]
[330603782,1719609103245,-2618.52,0.00027397,4]
[330603783,1719609103255,-775.03,0.00027397,4]
[330603784,1719609103264,-1047.09,0.00027397,4]
[330603785,1719609103272,-597.64,0.00027397,4]
[330603786,1719609103282,-1602.1,0.00027397,4]
[330603787,1719609103291,-619.46,0.00027397,4]
[330603788,1719609103300,-1252.86,0.00027397,4]
[330603789,1719609103309,-748.7,0.00027397,4]
[330603790,1719609103319,-3105.39,0.00027397,4]
[330603791,1719609103327,-725.68,0.00027397,4]
[330603792,1719609103336,-1391.86,0.00027397,4]
[330603793,1719609103346,-1221.39,0.00027397,4]
[330603794,1719609103355,-598.89,0.00027397,4]
[330603795,1719609103365,-761.97,0.00027397,4]
[330603796,1719609103374,-546.52104859,0.00027397,4]
[330603797,1719609103383,-1916.95,0.00027397,4]
[330603798,1719609103392,-911.28,0.00027397,4]
[330603799,1719609103401,-500.0,0.00027397,4]
[330603800,1719609103410,-1274.5,0.00027397,2]
[330603801,1719609103420,-786.07,0.00027397,4]
[330603802,1719609103429,-2096.46,0.00027397,4]
[330603803,1719609103438,-1472.43,0.00027397,4]
[330603804,1719609103447,-3430.95,0.00027397,4]
[330603805,1719609103456,-713.1,0.00027397,4]
[330603806,1719609103465,-1080.39,0.00027397,4]
[330603807,1719609103475,-2759.26,0.00027397,4]
[330603808,1719609103499,-32522.18,0.00027397,4]
[330603809,1719609103508,-1561.25,0.00027397,4]
[330603810,1719609103517,-1056.09,0.00027397,4]
[330603811,1719609103526,-626.89,0.00027397,4]
[330603812,1719609103538,-644.23,0.00027397,4]
[330603813,1719609103547,-919.74,0.00027397,4]
[330603814,1719609103557,-526.73,0.00027397,4]
[330603815,1719609103566,-500.0,0.00027397,4]
[330603816,1719609103575,-900.52,0.00027397,4]
[330603817,1719609103584,-2915.15,0.00027397,4]
[330603818,1719609103593,-1075.26,0.00027397,4]
[330603819,1719609103602,-898.0,0.00027397,4]
[330603820,1719609103611,-2606.56,0.00027397,4]
[330603821,1719609103620,-1017.0,0.00027397,4]
[330603822,1719609103629,-769.17,0.00027397,4]
[330603823,1719609103638,-724.43,0.00027397,4]
[330603824,1719609103647,-1811.19,0.00027397,4]
[330603825,1719609103657,-745.75,0.00027397,4]
[330603826,1719609103666,-1060.47,0.00027397,4]
[330603827,1719609103676,-555.14,0.00027397,4]
[330603828,1719609103685,-1646.45,0.00027397,4]
[330603829,1719609103694,-561.23,0.00027397,4]
[330603830,1719609103703,-1636.48,0.00027397,4]
[330603831,1719609103712,-2903.41,0.00027397,4]
[330603832,1719609103721,-500.0,0.00027397,4]
[330603833,1719609103731,-1643.03,0.00027397,4]
[330603834,1719609103740,-882.01,0.00027397,4]
[330603835,1719609103749,-23113.58,0.00027397,4]
[330603836,1719609103759,-1414.53,0.00027397,4]
[330603837,1719609103768,-628.52,0.00027397,4]
[330603838,1719609103777,-463.85890533,0.00027397,4]
[330603839,1719609103786,-500.0,0.00027397,4]
[330603840,1719609103795,-555.85,0.00027397,4]
[330603841,1719609103804,-11320.71,0.00027397,4]
[330603842,1719609103813,-644.76,0.00027397,4]
[330603843,1719609103823,-585.25,0.00027397,4]
[330603844,1719609103831,-756.94,0.00027397,4]
[330603845,1719609103840,-1188.67,0.00027397,4]
[330603846,1719609103850,-788.02,0.00027397,4]
[330603847,1719609103859,-1280.69,0.00027397,4]
[330603848,1719609103868,-2279.24,0.00027397,4]
[330603849,1719609103877,-500.0,0.00027397,4]
[330603850,1719609103886,-3712.0,0.00027397,4]
[330603851,1719609103895,-4032.61,0.00027397,4]
[330603852,1719609103904,-227.79,0.00027397,4]
[330603853,1719609103913,-1001.0,0.00027397,4]
[330603854,1719609103921,-2069.86,0.00027397,4]
[330603855,1719609103931,-5418.01,0.00027397,4]
[330603856,1719609103939,-826.19,0.00027397,4]
[330603857,1719609103948,-803.14,0.00027397,4]
[330603858,1719609103958,-939.69,0.00027397,4]
[330603859,1719609103968,-60694.4,0.00027397,4]
[330603860,1719609103977,-2175.07,0.00027397,4]
[330603861,1719609103986,-3733.28,0.00027397,4]
[330603862,1719609103995,-7121.33,0.00027397,4]
[330603863,1719609104004,-500.0,0.00027397,4]
[330603864,1719609104017,-4094.82,0.00027397,4]
[330603865,1719609104027,-582.3,0.00027397,4]
[330603866,1719609104035,-834.09,0.00027397,4]
[330603867,1719609104044,-521.59,0.00027397,4]
[330603868,1719609104054,-689.13,0.00027397,4]
[330603869,1719609104066,-1575.66,0.00027397,4]
[330603870,1719609104075,-1770.99,0.00027397,4]
[330603871,1719609104084,-12345.82,0.00027397,4]
[330603872,1719609104094,-651.08,0.00027397,4]
[330603873,1719609104103,-178.04033185,0.00027397,4]
[330603874,1719609104113,-1018.4,0.00027397,4]
[330603875,1719609104122,-500.0,0.00027397,30]
[330603876,1719609104131,-2468.56,0.00027397,4]
[330603877,1719609104139,-500.0,0.00027397,30]
[330603878,1719609104149,-500.0,0.00027397,30]
[330603879,1719609104158,-500.0,0.00027397,30]
[330603880,1719609104168,-500.0,0.00027397,30]
[330603881,1719609104177,-500.0,0.00027397,30]
[330603882,1719609104186,-12723.98,0.00027397,4]
[330603883,1719609104196,-500.0,0.00027397,30]
[330603884,1719609104206,-500.0,0.00027397,30]
[330603885,1719609104217,-500.0,0.00027397,30]
[330603886,1719609104226,-500.0,0.00027397,30]
[330603887,1719609104235,-500.0,0.00027397,30]
[330603888,1719609104244,-500.0,0.00027397,30]
[330603889,1719609104253,-500.0,0.00027397,30]
[330603890,1719609104263,-500.0,0.00027397,30]
[330603891,1719609104272,-500.0,0.00027397,30]
[330603892,1719609104280,-154.81750449,0.00027397,30]
[330603893,1719609104289,-1210.66,0.00027397,4]
[330603894,1719609104298,-500.0,0.00027397,2]
[330603895,1719609104307,-923.2,0.00027397,4]
[330603896,1719609104316,-483.05390914,0.00027397,2]
[330603897,1719609104325,-2010.28,0.00027397,4]
[330603898,1719609104335,-4814.91,0.00027397,4]
[330603899,1719609104344,-11513.48,0.00027397,4]
[330603900,1719609104353,-506.2,0.00027397,4]
[330603901,1719609104363,-10418.44,0.00027397,4]
[330603902,1719609104372,-500.0,0.00027397,4]
[330603903,1719609104381,-500.0,0.00027397,4]
[330603904,1719609104390,-959.34,0.00027397,4]
[330603905,1719609104399,-1894.29,0.00027397,4]
[330603906,1719609104408,-655.11,0.00027397,4]
[330603907,1719609104417,-1715.47,0.00027397,4]
[330603908,1719609104426,-1813.93,0.00027397,4]
[330603909,1719609104435,-1262.66,0.00027397,4]
[330603910,1719609104444,-761.05,0.00027397,4]
[330603911,1719609104453,-535.3,0.00027397,4]
[330603912,1719609104463,-1055.6,0.00027397,4]
[330603913,1719609104472,-1710.79,0.00027397,4]
[330603914,1719609104481,-2194.15,0.00027397,4]
[330603915,1719609104490,-979.7,0.00027397,4]
[330603916,1719609104499,-528.59,0.00027397,4]
[330603917,1719609104508,-628.71,0.00027397,4]
[330603918,1719609104517,-750.32,0.00027397,4]
[330603919,1719609104526,-586.77,0.00027397,4]
[330603920,1719609104536,-1021.86,0.00027397,4]
[330603921,1719609104546,-10772.11,0.00027397,4]
[330603922,1719609104555,-740.26,0.00027397,4]
[330603923,1719609104564,-1018.02,0.00027397,4]
[330603924,1719609104573,-3099.44,0.00027397,4]
[330603925,1719609104582,-669.76,0.00027397,4]
[330603926,1719609104592,-600.27,0.00027397,4]
[330603927,1719609104601,-500.0,0.00027397,4]
[330603928,1719609104611,-546.35,0.00027397,4]
[330603929,1719609104622,-4987.38,0.00027397,4]
[330603930,1719609104631,-500.0,0.00027397,4]
[330603931,1719609104640,-1461.16,0.00027397,4]
[330603932,1719609104650,-4038.76,0.00027397,4]
[330603933,1719609104660,-2850.21,0.00027397,4]
[330603934,1719609104670,-3352.17,0.00027397,4]
[330603935,1719609104679,-621.88,0.00027397,4]
[330603936,1719609104688,-683.47,0.00027397,4]
[330603937,1719609104697,-23476.31,0.00027397,4]
[330603938,1719609104707,-6462.45,0.00027397,4]
[330603939,1719609104716,-1525.02,0.00027397,4]
[330603940,1719609104726,-9156.13,0.00027397,4]
[330603941,1719609104735,-1587.41,0.00027397,4]
[330603942,1719609104744,-381.454446,0.00027397,7]
[330603943,1719609104754,-381.454446,0.00027397,7]
[330603944,1719609104763,-381.454446,0.00027397,7]
[330603945,1719609104772,-381.454446,0.00027397,7]
[330603946,1719609104781,-381.454446,0.00027397,7]
[330603947,1719609104790,-381.454446,0.00027397,7]
[330603948,1719609104799,-381.454446,0.00027397,7]
[330603949,1719609104808,-381.454446,0.00027397,7]
[330603950,1719609104817,-381.454446,0.00027397,7]
[330603951,1719609104826,-381.454446,0.00027397,7]
[330603952,1719609104835,-381.454446,0.00027397,7]
[330603953,1719609104844,-381.454446,0.00027397,7]
[330603954,1719609104852,-381.454446,0.00027397,7]
[330603955,1719609104862,-381.454446,0.00027397,7]
[330603956,1719609104871,-381.454446,0.00027397,7]
[330603957,1719609104880,-381.454446,0.00027397,7]
[330603958,1719609104890,-381.454446,0.00027397,7]
[330603959,1719609104901,-381.454446,0.00027397,7]
[330603960,1719609104910,-381.454446,0.00027397,7]
[330603961,1719609104921,-381.45445,0.00027397,7]
[330603962,1719609104930,-269.28274629,0.000274,2]
[330603963,1719609104940,-444.0,0.00027402,2]
[330603964,1719609104948,-312.0,0.00027402,2]
[330603965,1719609104958,-162.125942,0.00027427,2]
[330603966,1719609104967,-195.968576,0.00027427,2]
[330603967,1719609104976,-909.47482687,0.000275,30]
[330603968,1719609104985,-43603.07349793,0.000275,2]
[330603969,1719609104994,-620.0,0.00027526,2]
[330603970,1719609105003,-151.31843755,0.0002754,5]
[330603971,1719609105016,-151.33355125,0.0002754,5]
[330603972,1719609105026,-6356.54,0.00027671,4]
[330603973,1719609105035,-500.0,0.00027671,2]
[330603974,1719609105044,-1053.33,0.00027671,4]
[330603975,1719609105053,-500.0,0.00027671,4]
[330603976,1719609105065,-581.35,0.00027671,4]
[330603977,1719609105075,-2317.09,0.00027671,4]
[330603978,1719609105084,-922.96,0.00027671,4]
[330603979,1719609105095,-834.68,0.00027671,4]
[330603980,1719609105106,-803.38,0.00027671,4]
[330603981,1719609105115,-1513.65,0.00027671,4]
[330603982,1719609105124,-969.26,0.00027671,4]
[330603983,1719609105134,-1279.12,0.00027671,4]
[330603984,1719609105143,-580.44,0.00027671,4]
[330603985,1719609105152,-750.55,0.00027671,4]
[330603986,1719609105161,-527.85,0.00027671,4]
[330603987,1719609105170,-762.9,0.00027671,4]
[330603988,1719609105179,-500.0,0.00027671,4]
[330603989,1719609105189,-794.3,0.00027671,4]
[330603990,1719609105198,-526.04,0.00027671,4]
[330603991,1719609105208,-819.47,0.00027671,4]
[330603992,1719609105216,-905.98,0.00027671,4]
[330603993,1719609105225,-1589.77,0.00027671,4]
[330603994,1719609105234,-1414.16,0.00027671,4]
[330603995,1719609105243,-514.41,0.00027671,4]
[330603996,1719609105252,-549.62,0.00027671,4]
[330603997,1719609105260,-1020.77,0.00027671,4]
[330603998,1719609105269,-2333.86,0.00027671,4]
[330603999,1719609105278,-718.41,0.00027671,4]
[330604000,1719609105422,-632.14,0.00027671,4]
[330604001,1719609105432,-2254.28,0.00027671,4]
[330604002,1719609105441,-1134.77,0.00027671,4]
[330604003,1719609105451,-552.34,0.00027671,4]
[330604004,1719609105459,-655.59,0.00027671,4]
[330604005,1719609105468,-460.7005654,0.00027671,4]
[330604006,1719609105477,-1584.44,0.00027671,4]
[330604007,1719609105490,-705.63,0.00027671,4]
[330604008,1719609105503,-992.69,0.00027671,4]
[330604009,1719609105512,-963.94,0.00027671,4]
[330604010,1719609105521,-2618.52,0.00027671,4]
[330604011,1719609105531,-775.03,0.00027671,4]
[330604012,1719609105540,-1047.09,0.00027671,4]
[330604013,1719609105549,-597.64,0.00027671,4]
[330604014,1719609105559,-1602.1,0.00027671,4]
[330604015,1719609105568,-619.46,0.00027671,4]
[330604016,1719609105577,-1252.86,0.00027671,4]
[330604017,1719609105587,-748.7,0.00027671,4]
[330604018,1719609105596,-3105.39,0.00027671,4]
[330604019,1719609105606,-725.68,0.00027671,4]
[330604020,1719609105615,-1391.86,0.00027671,4]
[330604021,1719609105624,-1221.39,0.00027671,4]
[330604022,1719609105634,-598.89,0.00027671,4]
[330604023,1719609105643,-761.97,0.00027671,4]
[330604024,1719609105652,-1916.95,0.00027671,4]
[330604025,1719609105662,-911.28,0.00027671,4]
[330604026,1719609105671,-500.0,0.00027671,4]
[330604027,1719609105680,-1274.5,0.00027671,2]
[330604028,1719609105690,-2096.46,0.00027671,4]
[330604029,1719609105699,-786.07,0.00027671,4]
[330604030,1719609105708,-1472.43,0.00027671,4]
[330604031,1719609105717,-3430.95,0.00027671,4]
[330604032,1719609105727,-713.1,0.00027671,4]
[330604033,1719609105736,-1080.39,0.00027671,4]
[330604034,1719609105745,-2759.26,0.00027671,4]
[330604035,1719609105754,-32522.18,0.00027671,4]
[330604036,1719609105764,-1561.25,0.00027671,4]
[330604037,1719609105774,-1056.09,0.00027671,4]
[330604038,1719609105783,-626.89,0.00027671,4]
[330604039,1719609105792,-644.23,0.00027671,4]
[330604040,1719609105801,-919.74,0.00027671,4]
[330604041,1719609105811,-526.73,0.00027671,4]
[330604042,1719609105819,-500.0,0.00027671,4]
[330604043,1719609105829,-900.52,0.00027671,4]
[330604044,1719609105839,-2915.15,0.00027671,4]
[330604045,1719609105848,-1075.26,0.00027671,4]
[330604046,1719609105857,-898.0,0.00027671,4]
[330604047,1719609105866,-2606.56,0.00027671,4]
[330604048,1719609105875,-1017.0,0.00027671,4]
[330604049,1719609105885,-769.17,0.00027671,4]
[330604050,1719609105895,-724.43,0.00027671,4]
[330604051,1719609105904,-1811.19,0.00027671,4]
[330604052,1719609105913,-745.75,0.00027671,4]
[330604053,1719609105923,-1060.47,0.00027671,4]
[330604054,1719609105932,-555.14,0.00027671,4]
[330604055,1719609105941,-1646.45,0.00027671,4]
[330604056,1719609105951,-561.23,0.00027671,4]
[330604057,1719609105961,-1636.48,0.00027671,4]
[330604058,1719609105971,-2903.41,0.00027671,4]
[330604059,1719609105980,-500.0,0.00027671,4]
[330604060,1719609105990,-1643.03,0.00027671,4]
[330604061,1719609106000,-882.01,0.00027671,4]
[330604062,1719609106012,-23113.58,0.00027671,4]
[330604063,1719609106023,-1414.53,0.00027671,4]
[330604064,1719609106033,-628.52,0.00027671,4]
[330604065,1719609106042,-500.0,0.00027671,4]
[330604066,1719609106051,-555.85,0.00027671,4]
[330604067,1719609106062,-11320.71,0.00027671,4]
[330604068,1719609106071,-644.76,0.00027671,4]
[330604069,1719609106081,-585.25,0.00027671,4]
[330604070,1719609106091,-756.94,0.00027671,4]
[330604071,1719609106101,-1188.67,0.00027671,4]
[330604072,1719609106111,-788.02,0.00027671,4]
[330604073,1719609106120,-1280.69,0.00027671,4]
[330604074,1719609106129,-2279.24,0.00027671,4]
[330604075,1719609106138,-256.67390424,0.00027671,4]
[330604076,1719609106147,-3712.0,0.00027671,4]
[330604077,1719609106155,-4032.61,0.00027671,4]
[330604078,1719609106165,-227.79,0.00027671,4]
[330604079,1719609106174,-1001.0,0.00027671,4]
[330604080,1719609106183,-2069.86,0.00027671,4]
[330604081,1719609106192,-5418.01,0.00027671,4]
[330604082,1719609106201,-826.19,0.00027671,4]
[330604083,1719609106211,-803.14,0.00027671,4]
[330604084,1719609106220,-939.69,0.00027671,4]
[330604085,1719609106229,-60694.4,0.00027671,4]
[330604086,1719609106238,-2175.07,0.00027671,4]
[330604087,1719609106248,-3733.28,0.00027671,4]
[330604088,1719609106257,-7121.33,0.00027671,4]
[330604089,1719609106266,-500.0,0.00027671,4]
[330604090,1719609106275,-582.3,0.00027671,4]
[330604091,1719609106284,-834.09,0.00027671,4]
[330604092,1719609106293,-521.59,0.00027671,4]
[330604093,1719609106302,-689.13,0.00027671,4]
[330604094,1719609106311,-4094.82,0.00027671,4]
[330604095,1719609106320,-1770.99,0.00027671,4]
[330604096,1719609106329,-1575.66,0.00027671,4]
[330604097,1719609106339,-12345.82,0.00027671,4]
[330604098,1719609106348,-651.08,0.00027671,4]
[330604099,1719609106357,-1018.4,0.00027671,4]
[330604100,1719609106366,-2468.56,0.00027671,4]
[330604101,1719609106376,-12723.98,0.00027671,4]
[330604102,1719609106385,-1210.66,0.00027671,4]
[330604103,1719609106394,-388.33124513,0.00027671,2]
[330604104,1719609106404,-923.2,0.00027671,4]
[330604105,1719609106414,-2010.28,0.00027671,4]
[330604106,1719609106423,-4814.91,0.00027671,4]
[330604107,1719609106432,-11513.48,0.00027671,4]
[330604108,1719609106441,-506.2,0.00027671,4]
[330604109,1719609106451,-10418.44,0.00027671,4]
[330604110,1719609106460,-250.37408661,0.00027671,4]
[330604111,1719609106469,-598.57368301,0.00027671,4]
[330604112,1719609106478,-959.34,0.00027671,4]
[330604113,1719609106487,-1894.29,0.00027671,4]
[330604114,1719609106496,-655.11,0.00027671,4]
[330604115,1719609106506,-1715.47,0.00027671,4]
[330604116,1719609106515,-1813.93,0.00027671,4]
[330604117,1719609106523,-1262.66,0.00027671,4]
[330604118,1719609106533,-761.05,0.00027671,4]
[330604119,1719609106542,-535.3,0.00027671,4]
[330604120,1719609106551,-1055.6,0.00027671,4]
[330604121,1719609106560,-1710.79,0.00027671,4]
[330604122,1719609106569,-2194.15,0.00027671,4]
[330604123,1719609106578,-979.7,0.00027671,4]
[330604124,1719609106587,-528.59,0.00027671,4]
[330604125,1719609106597,-628.71,0.00027671,4]
[330604126,1719609106606,-750.32,0.00027671,4]
[330604127,1719609106615,-586.77,0.00027671,4]
[330604128,1719609106624,-1021.86,0.00027671,4]
[330604129,1719609106634,-10772.11,0.00027671,4]
[330604130,1719609106643,-740.26,0.00027671,4]
[330604131,1719609106652,-1018.02,0.00027671,4]
[330604132,1719609106661,-3099.44,0.00027671,4]
[330604133,1719609106671,-669.76,0.00027671,4]
[330604134,1719609106680,-600.27,0.00027671,4]
[330604135,1719609106690,-500.0,0.00027671,4]
[330604136,1719609106699,-546.35,0.00027671,4]
[330604137,1719609106708,-4987.38,0.00027671,4]
[330604138,1719609106718,-500.0,0.00027671,4]
[330604139,1719609106728,-1461.16,0.00027671,4]
[330604140,1719609106737,-4038.76,0.00027671,4]
[330604141,1719609106748,-3352.17,0.00027671,4]
[330604142,1719609106757,-621.88,0.00027671,4]
[330604143,1719609106768,-2850.21,0.00027671,4]
[330604144,1719609106777,-683.47,0.00027671,4]
[330604145,1719609106786,-23476.31,0.00027671,4]
[330604146,1719609106796,-6462.45,0.00027671,4]
[330604147,1719609106806,-1525.02,0.00027671,4]
[330604148,1719609106816,-9156.13,0.00027671,4]
[330604149,1719609106826,-1587.41,0.00027671,4]
[330604150,1719609106836,-1050.0,0.00027723,2]
[330604151,1719609106846,-162.125942,0.00027758,2]
[330604152,1719609106856,-195.968576,0.00027758,2]
[330604153,1719609106866,-444.0,0.00027789,2]
[330604154,1719609106875,-312.0,0.00027789,2]
[330604155,1719609106884,-3000.0,0.000278,120]
[330604156,1719609106893,-1143.31818125,0.000279,2]
[330604157,1719609106903,-6356.54,0.00027945,4]
[330604158,1719609106911,-500.0,0.00027945,2]
[330604159,1719609106920,-1053.33,0.00027945,4]